fUSD/lending_fUSD_20250111
["ID","MTS","AMOUNT","RATE_DAILY","PERIOD"]
[348486592,1736571034349,-503.95252603,9.997e-05,2]
[348486593,1736571034359,-500.0,9.997e-05,2]
[348486594,1736571034369,-560.639954,9.997e-05,2]
[348486595,1736571034379,-500.0,9.997e-05,2]
[348486596,1736571034390,-505.78446692,9.997e-05,2]
[348486597,1736571034401,-501.88300178,9.997e-05,2]
[348486598,1736571034411,-503.4388772,9.997e-05,2]
[348486599,1736571034422,-503.07508095,9.997e-05,2]
[348486600,1736571034431,-607.06896791,9.997e-05,2]
[348486601,1736571034441,-401.58369998,9.997e-05,2]
[348486602,1736571034452,-503.12741585,9.997e-05,2]
[348486603,1736571034462,-511.87838539,9.997e-05,2]
[348486604,1736571034472,-507.7294323,9.997e-05,2]
[348486605,1736571034482,-502.0411987,9.997e-05,2]
[348486606,1736571034492,-507.22711623,9.997e-05,2]
[348486607,1736571034501,-506.7700943,9.997e-05,2]
[348486608,1736571034511,-500.85381183,9.997e-05,2]
[348486609,1736571034521,-502.24380357,9.997e-05,2]
[348486610,1736571034531,-509.45214898,9.997e-05,2]
[348486611,1736571034540,-506.40018164,9.997e-05,2]
[348486612,1736571034550,-500.78205816,9.997e-05,2]
[348486613,1736571034559,-495.89541569,9.997e-05,2]
[348486614,1736571034569,-505.55981744,9.997e-05,2]
[348486615,1736571034579,-500.0,9.997e-05,2]
[348486616,1736571034589,-506.45935411,9.997e-05,2]
[348486617,1736571034599,-500.0,9.997e-05,2]
[348486618,1736571034609,-1198.27,9.997e-05,2]
[348486619,1736571034619,-504.01805169,9.997e-05,2]
[348486620,1736571034628,-507.16777624,9.997e-05,2]
[348486621,1736571034638,-507.19707356,9.997e-05,2]
[348486622,1736571034647,-479.27457808,9.997e-05,2]
[348486623,1736571034657,-501.36000619,9.997e-05,2]
[348486624,1736571034667,-503.83342016,9.997e-05,2]
[348486625,1736571034677,-1464.91,9.997e-05,2]
[348486626,1736571034687,-507.12589654,9.997e-05,2]
[348486627,1736571034697,-500.0,9.997e-05,2]
[348486628,1736571034707,-503.69770536,9.997e-05,2]
[348486629,1736571034718,-504.00860474,9.997e-05,2]
[348486630,1736571034728,-500.0,9.997e-05,2]
[348486631,1736571034738,-503.86619434,9.997e-05,2]
[348486632,1736571034753,-501.27805626,9.997e-05,2]
[348486633,1736571034763,-861.4,9.997e-05,2]
[348486634,1736571034776,-505.20587347,9.997e-05,2]
[348486635,1736571034787,-508.80493973,9.997e-05,2]
[348486636,1736571034797,-507.60363005,9.997e-05,2]
[348486637,1736571034807,-500.0,9.997e-05,2]
[348486638,1736571034818,-513.26863637,9.997e-05,2]
[348486639,1736571034828,-500.0,9.997e-05,2]
[348486640,1736571034838,-614.87432645,9.997e-05,2]
[348486641,1736571034850,-546.15,9.997e-05,2]
[348486642,1736571034860,-508.0664942,9.997e-05,2]
[348486643,1736571034871,-504.27428304,9.997e-05,2]
[348486644,1736571034881,-519.52159883,9.997e-05,2]
[348486645,1736571034892,-510.82610891,9.997e-05,2]
[348486646,1736571034902,-925.01,9.997e-05,2]
[348486647,1736571034912,-1658.84,9.997e-05,2]
[348486648,1736571034922,-521.33927296,9.997e-05,2]
[348486649,1736571034934,-359.66077353,9.997e-05,2]
[348486650,1736571034945,-505.92251215,9.997e-05,2]
[348486651,1736571034956,-500.0,9.997e-05,2]
[348486652,1736571034966,-500.0,9.997e-05,2]
[348486653,1736571034977,-500.0,9.997e-05,2]
[348486654,1736571034987,-500.0,9.997e-05,2]
[348486655,1736571034998,-1672.12,9.997e-05,2]
[348486656,1736571035009,-500.0,9.998e-05,2]
[348486657,1736571035020,-500.0,9.998e-05,2]
[348486658,1736571035032,-500.0,9.998e-05,2]
[348486659,1736571035043,-500.0,9.998e-05,2]
[348486660,1736571035055,-500.0,9.998e-05,2]
[348486661,1736571035066,-500.0,9.998e-05,2]
[348486662,1736571035076,-500.0,9.998e-05,2]
[348486663,1736571035086,-500.0,9.998e-05,2]
[348486664,1736571035097,-501.55302664,9.998e-05,2]
[348486665,1736571035108,-500.0,9.998e-05,2]
[348486666,1736571035120,-500.0,9.998e-05,2]
[348486667,1736571035130,-500.0,9.998e-05,2]
[348486668,1736571035141,-500.0,9.998e-05,2]
[348486669,1736571035151,-500.0,9.998e-05,2]
[348486670,1736571035162,-500.0,9.998e-05,2]
[348486671,1736571035174,-500.0,9.998e-05,2]
[348486672,1736571035186,-500.0,9.998e-05,2]
[348486673,1736571035197,-500.0,9.998e-05,2]
[348486674,1736571035206,-500.0,9.998e-05,2]
[348486675,1736571035217,-500.0,9.998e-05,2]
[348486676,1736571035228,-500.0,9.998e-05,2]
[348486677,1736571035240,-500.0,9.998e-05,2]
[348486678,1736571035250,-500.0,9.998e-05,2]
[348486679,1736571035266,-500.0,9.998e-05,2]
[348486680,1736571035277,-500.0,9.998e-05,2]
[348486681,1736571035287,-500.0,9.998e-05,2]
[348486682,1736571035298,-500.0,9.998e-05,2]
[348486683,1736571035308,-500.0,9.998e-05,2]
[348486684,1736571035319,-507.18003547,9.998e-05,2]
[348486685,1736571035329,-549.19762685,9.998e-05,2]
[348486686,1736571035339,-213.36271734,9.998e-05,2]
[348486687,1736571035350,-646.70239316,9.998e-05,2]
[348486688,1736571035360,-500.0,9.998e-05,2]
[348486689,1736571035371,-518.04799306,9.998e-05,2]
[348486690,1736571035382,-500.0,9.998e-05,2]
[348486691,1736571035392,-500.0,9.998e-05,2]
[348486692,1736571035402,-500.0,9.998e-05,2]
[348486693,1736571035413,-500.0,9.998e-05,2]
[348486694,1736571035425,-500.0,9.998e-05,2]
[348486695,1736571035435,-504.31983409,9.998e-05,2]
[348486696,1736571035445,-519.53,9.998e-05,2]
[348486697,1736571035457,-503.15591559,9.998e-05,2]
[348486698,1736571035468,-498.88196179,9.998e-05,2]
[348486699,1736571035478,-500.0,9.998e-05,2]
[348486700,1736571035488,-500.0,9.998e-05,2]
[348486701,1736571035498,-500.0,9.998e-05,2]
[348486702,1736571035509,-501.39999554,9.998e-05,2]
[348486703,1736571035519,-508.08051121,9.998e-05,2]
[348486704,1736571035529,-517.32,9.998e-05,2]
[348486705,1736571035539,-500.0,9.998e-05,2]
[348486706,1736571035549,-501.55951011,9.998e-05,2]
[348486707,1736571035559,-500.0,9.998e-05,2]
[348486708,1736571035569,-499.99122172,9.998e-05,2]
[348486709,1736571035578,-500.0,9.998e-05,2]
[348486710,1736571035589,-503.34272744,9.998e-05,2]
[348486711,1736571035598,-500.0,9.998e-05,2]
[348486712,1736571035607,-599.38,9.998e-05,2]
[348486713,1736571035618,-502.82326682,9.998e-05,2]
[348486714,1736571035627,-678.63,9.998e-05,2]
[348486715,1736571035638,-635.84344234,9.998e-05,2]
[348486716,1736571035648,-501.12531898,9.998e-05,2]
[348486717,1736571035658,-503.20950138,9.998e-05,2]
[348486718,1736571035669,-500.0,9.998e-05,2]
[348486719,1736571035680,-503.25574537,9.998e-05,2]
[348486720,1736571035690,-500.0,9.998e-05,2]
[348486721,1736571035701,-500.0,9.998e-05,2]
[348486722,1736571035711,-501.11043697,9.998e-05,2]
[348486723,1736571035722,-500.0,9.998e-05,2]
[348486724,1736571035732,-501.08709306,9.998e-05,2]
[348486725,1736571035743,-506.79979028,9.998e-05,2]
[348486726,1736571035753,-503.32994012,9.998e-05,2]
[348486727,1736571035770,-500.0,9.998e-05,2]
[348486728,1736571035780,-500.0,9.998e-05,2]
[348486729,1736571035790,-542.17625081,9.998e-05,2]
[348486730,1736571036057,-500.0,9.998e-05,2]
[348486731,1736571036068,-503.15594611,9.998e-05,2]
[348486732,1736571036078,-500.0,9.998e-05,2]
[348486733,1736571036090,-501.90263845,9.998e-05,2]
[348486734,1736571036100,-540.74,9.998e-05,2]
[348486735,1736571036111,-501.95622146,9.998e-05,2]
[348486736,1736571036121,-501.27815395,9.998e-05,2]
[348486737,1736571036131,-500.98480149,9.998e-05,2]
[348486738,1736571036142,-500.0,9.998e-05,2]
[348486739,1736571036152,-500.0,9.998e-05,2]
[348486740,1736571036162,-501.10116236,9.998e-05,2]
[348486741,1736571036173,-500.0,9.998e-05,2]
[348486742,1736571036183,-409.81114723,9.998e-05,2]
[348486743,1736571036192,-500.0,9.998e-05,2]
[348486744,1736571036202,-500.0,9.998e-05,2]
[348486745,1736571036212,-500.0,9.998e-05,2]
[348486746,1736571036222,-500.0,9.998e-05,2]
[348486747,1736571036233,-242.58948819,9.998e-05,2]
[348486748,1736571036244,-500.0,9.998e-05,2]
[348486749,1736571036254,-500.0,9.998e-05,2]
[348486750,1736571036264,-501.54363012,9.998e-05,2]
[348486751,1736571036274,-500.0,9.998e-05,2]
[348486752,1736571036285,-327.23160121,9.998e-05,2]
[348486753,1736571036295,-500.0,9.998e-05,2]
[348486754,1736571036305,-500.8980417,9.998e-05,2]
[348486755,1736571036315,-500.0,9.998e-05,2]
[348486756,1736571036325,-501.89317111,9.998e-05,2]
[348486757,1736571036336,-500.0,9.998e-05,2]
[348486758,1736571036348,-502.40956051,9.998e-05,2]
[348486759,1736571036371,-504.53532024,9.998e-05,2]
[348486760,1736571036382,-497.15345469,9.998e-05,2]
[348486761,1736571036394,-500.0,9.998e-05,2]
[348486762,1736571036406,-500.0,9.998e-05,2]
[348486763,1736571036418,-500.93592831,9.998e-05,2]
[348486764,1736571036430,-403.17503893,9.998e-05,2]
[348486765,1736571036442,-501.87352524,9.998e-05,2]
[348486766,1736571036453,-500.0,9.998e-05,2]
[348486767,1736571036464,-486.23076591,9.998e-05,2]
[348486768,1736571036475,-500.0,9.998e-05,2]
[348486769,1736571036486,-500.0,9.998e-05,2]
[348486770,1736571036497,-500.0,9.998e-05,2]
[348486771,1736571036507,-500.0,9.998e-05,2]
[348486772,1736571036519,-500.0,9.998e-05,2]
[348486773,1736571036529,-627.08728379,9.998e-05,2]
[348486774,1736571036539,-500.0,9.998e-05,2]
[348486775,1736571036549,-500.0,9.998e-05,2]
[348486776,1736571036559,-500.0,9.998e-05,2]
[348486777,1736571036571,-500.0,9.998e-05,2]
[348486778,1736571036581,-506.91336361,9.998e-05,2]
[348486779,1736571036591,-504.8347509,9.998e-05,2]
[348486780,1736571036602,-508.10196232,9.998e-05,2]
[348486781,1736571036613,-500.0,9.998e-05,2]
[348486782,1736571036623,-500.0,9.998e-05,2]
[348486783,1736571036634,-505.82448226,9.998e-05,2]
[348486784,1736571036644,-500.0,9.998e-05,2]
[348486785,1736571036655,-500.82473051,9.998e-05,2]
[348486786,1736571036665,-500.0,9.998e-05,2]
[348486787,1736571036675,-504.90099446,9.998e-05,2]
[348486788,1736571036685,-500.0,9.998e-05,2]
[348486789,1736571036696,-500.0,9.998e-05,2]
[348486790,1736571036708,-500.0,9.998e-05,2]
[348486791,1736571036719,-500.0,9.998e-05,2]
[348486792,1736571036729,-500.0,9.998e-05,2]
[348486793,1736571036740,-1046.44,9.998e-05,2]
[348486794,1736571036750,-500.0,9.998e-05,2]
[348486795,1736571036761,-506.37702821,9.998e-05,2]
[348486796,1736571036775,-500.0,9.998e-05,2]
[348486797,1736571036785,-500.0,9.998e-05,2]
[348486798,1736571036795,-1170.29,9.998e-05,2]
[348486799,1736571036805,-500.0,9.998e-05,2]
[348486800,1736571036816,-500.0,9.998e-05,2]
[348486801,1736571036827,-528.19,9.998e-05,2]
[348486802,1736571036836,-500.0,9.998e-05,2]
[348486803,1736571036850,-500.0,9.998e-05,2]
[348486804,1736571036861,-1343.0,9.998e-05,2]
[348486805,1736571036872,-500.0,9.998e-05,2]
[348486806,1736571036882,-3260.01,9.998e-05,2]
[348486807,1736571036893,-500.0,9.998e-05,2]
[348486808,1736571036903,-906.7,9.998e-05,2]
[348486809,1736571036913,-500.0,9.998e-05,2]
[348486810,1736571036923,-500.0,9.998e-05,2]
[348486811,1736571036933,-500.0,9.998e-05,2]
[348486812,1736571036943,-500.0,9.998e-05,2]
[348486813,1736571036953,-500.0,9.998e-05,2]
[348486814,1736571036963,-500.0,9.998e-05,2]
[348486815,1736571036973,-510.63149276,9.998e-05,2]
[348486816,1736571036983,-500.0,9.998e-05,2]
[348486817,1736571036993,-500.0,9.998e-05,2]
[348486818,1736571037003,-626.68,9.998e-05,2]
[348486819,1736571037014,-500.0,9.998e-05,2]
[348486820,1736571037024,-500.0,9.998e-05,2]
[348486821,1736571037034,-281.48532665,9.998e-05,2]
[348486822,1736571037044,-2027.39,9.998e-05,2]
[348486823,1736571037055,-505.89421977,9.998e-05,2]
[348486824,1736571037066,-1906.97,9.998e-05,2]
[348486825,1736571037076,-500.0,9.998e-05,2]
[348486826,1736571037086,-500.0,9.998e-05,2]
[348486827,1736571037096,-500.0,9.998e-05,2]
[348486828,1736571037106,-1141.8,9.998e-05,2]
[348486829,1736571037116,-500.0,9.998e-05,2]
[348486830,1736571037127,-638.77,9.998e-05,2]
[348486831,1736571037137,-500.0,9.998e-05,2]
[348486832,1736571037148,-500.0,9.998e-05,2]
[348486833,1736571037158,-1943.99,9.998e-05,2]
[348486834,1736571037168,-500.0,9.998e-05,2]
[348486835,1736571037178,-1749.3,9.998e-05,2]
[348486836,1736571037188,-500.0,9.998e-05,2]
[348486837,1736571037199,-500.0,9.998e-05,2]
[348486838,1736571037209,-575.1,9.998e-05,2]
[348486839,1736571037219,-214.58912684,9.998e-05,2]
[348486840,1736571037229,-500.0,9.998e-05,2]
[348486841,1736571037240,-1865.33,9.998e-05,2]
[348486842,1736571037251,-500.0,9.998e-05,2]
[348486843,1736571037262,-500.0,9.998e-05,2]
[348486844,1736571037272,-500.0,9.998e-05,2]
[348486845,1736571037282,-1180.69,9.998e-05,2]
[348486846,1736571037292,-500.0,9.998e-05,2]
[348486848,1736571037302,-566.46771875,9.998e-05,2]
[348486850,1736571037313,-807.41,9.998e-05,2]
[348486852,1736571037324,-359.09974785,9.998e-05,2]
[348486853,1736571037630,-140.90025215,9.998e-05,2]
[348486854,1736571037640,-547.78,9.998e-05,2]
[348486855,1736571037651,-511.68175685,9.998e-05,2]
[348486856,1736571037661,-206.69911903,9.998e-05,2]
[348486857,1736571037674,-293.30088097,9.998e-05,2]
[348486858,1736571037684,-512.13,9.998e-05,2]
[348486859,1736571037695,-141.87927337,9.998e-05,2]
[348486860,1736571037723,-449.81189462,9.997e-05,2]
[348486861,1736571037734,-358.12072663,9.998e-05,2]
[348486863,1736571037744,-500.0,9.998e-05,2]
[348486865,1736571037755,-354.213923,9.999e-05,2]
[348486867,1736571037766,-526.855979,9.999e-05,2]
[348486869,1736571037777,-500.0,9.999e-05,2]
[348486871,1736571037787,-500.0,9.999e-05,2]
[348486872,1736571037797,-500.0,9.999e-05,2]
[348486874,1736571037808,-500.0,9.999e-05,2]
[348486876,1736571037818,-500.0,9.999e-05,2]
[348486879,1736571037828,-500.0,9.999e-05,2]
[348486880,1736571037838,-500.0,9.999e-05,2]
[348486882,1736571037848,-500.0,9.999e-05,2]
[348486885,1736571037859,-500.0,9.999e-05,2]
[348486886,1736571037868,-500.0,9.999e-05,2]
[348486889,1736571037879,-500.0,9.999e-05,2]
[348486890,1736571037889,-744.68,9.999e-05,2]
[348486892,1736571037899,-550.25,9.999e-05,2]
[348486894,1736571037909,-1901.68,9.999e-05,2]
[348486896,1736571037919,-500.0,9.999e-05,2]
[348486898,1736571037929,-637.4,9.999e-05,2]
[348486901,1736571037939,-500.0,9.999e-05,2]
[348486903,1736571037949,-500.0,9.999e-05,2]
[348486905,1736571037960,-1992.92,9.999e-05,2]
[348486907,1736571037970,-747.88,9.999e-05,2]
[348486909,1736571037980,-538.13,9.999e-05,2]
[348486911,1736571037990,-500.0,9.999e-05,2]
[348486913,1736571038000,-769.73,9.999e-05,2]
[348486915,1736571038010,-1111.74,9.999e-05,2]
[348486917,1736571038020,-2236.48,9.999e-05,2]
[348486919,1736571038030,-1043.05,9.999e-05,2]
[348486921,1736571038039,-638.77,9.999e-05,2]
[348486923,1736571038049,-638.77,9.999e-05,2]
[348486925,1736571038059,-638.77,9.999e-05,2]
[348486927,1736571038068,-638.77,9.999e-05,2]
[348486929,1736571038077,-638.77,9.999e-05,2]
[348486931,1736571038087,-638.77,9.999e-05,2]
[348486933,1736571038097,-638.77,9.999e-05,2]
[348486934,1736571038107,-500.0,9.999e-05,2]
[348486936,1736571038117,-654.77,9.999e-05,2]
[348486938,1736571038126,-1113.77,9.999e-05,2]
[348486940,1736571038136,-1909.03,9.999e-05,2]
[348486942,1736571038146,-2011.4,9.999e-05,2]
[348486944,1736571038155,-914.59,9.999e-05,2]
[348486946,1736571038165,-1616.0,0.0001,2]
[348486948,1736571038176,-138342.44287221,0.0001,2]
[348486950,1736571038188,-24229.19896097,0.0001,2]
[348486953,1736571038212,-333.89051348,0.0001,2]
[348486956,1736571038232,-94050.0,0.0001,2]
[348486958,1736571038244,-291.70508425,0.0001,2]
[348486961,1736571038256,-5131.33265998,0.0001,2]
[348486963,1736571038268,-1162.63548311,0.0001,2]
[348486969,1736571038317,-1412.86,9.999e-05,2]
[348486971,1736571038327,-2477.54394458,0.0001,2]
[348486975,1736571038362,-4793.7,0.0001,2]
[348486999,1736571039226,-454.39228544,0.0001,2]
[348487000,1736571039237,-312.27156458,0.0001,2]
[348487001,1736571039249,-519.07829482,0.0001,2]
[348487002,1736571039263,-6526.06572285,0.0001,2]
[348487003,1736571039275,-509.55688897,0.0001,2]
[348487004,1736571039300,-22714.42977634,0.0001,2]
[348487005,1736571039314,-22205.38661682,0.0001,2]
[348487006,1736571039337,-4677.82886025,0.0001,2]
[348487007,1736571039360,-511.90603702,0.0001,2]
[348487008,1736571039371,-985.75000152,0.0001,2]
[348487010,1736571039383,-257.15126832,0.0001,2]
[348487012,1736571039399,-9385.89740055,0.0001,2]
[348487013,1736571039411,-757.25070126,0.0001,2]
[348487014,1736571039587,-499.38000045,0.0001,2]
[348487015,1736571039599,-3795.15533901,0.0001,2]
[348487016,1736571039611,-4927.23480549,0.0001,2]
[348487017,1736571039730,-607.46602351,0.0001,2]
[348487018,1736571039785,-1902.57995286,0.0001,2]
[348487019,1736571039797,-441.50639637,0.0001,2]
[348487020,1736571039839,-3966.081876,0.0001,2]
[348487021,1736571039851,-1693.05149831,0.0001,2]
[348487033,1736571042649,-500.0,9.997e-05,2]
[348487034,1736571042659,-4216.8462364,0.0001,2]
[348487035,1736571045520,-500.0,9.997e-05,2]
[348487036,1736571045531,-500.0,9.997e-05,2]
[348487037,1736571045540,-18507.74026,0.0001,2]
[348487038,1736571045552,-6700.0,0.0001,2]
[348487039,1736571045565,-23506.61169528,0.0001,2]
[348487040,1736571045576,-59857.728561,0.0001,2]
[348487041,1736571045627,-912.34615092,0.0001,2]
[348487042,1736571045638,-14077.94462978,0.0001,2]
[348487043,1736571045736,-31639.77275169,0.0001,2]
[348487047,1736571452383,694.1,0.0002,120]
[348487048,1736571522689,772.75,8.219e-05,2]
[348487049,1736571544300,778.62095006,0.0002,120]
[348487059,1736572231687,-1000.0,8.61e-05,2]
[348487060,1736572231698,-588.41,8.661e-05,2]
[348487061,1736572231708,-150.0,8.673e-05,2]
[348487062,1736572231718,-146.83001276,8.681e-05,2]
[348487063,1736572231729,-3.16998724,8.681e-05,2]
[348487064,1736572231739,-150.0,8.773e-05,2]
[348487065,1736572231749,-150.0,8.861e-05,2]
[348487066,1736572231759,-150.0,8.887e-05,2]
[348487067,1736572231768,-150.0,8.962e-05,2]
[348487068,1736572231778,-150.0,8.988e-05,2]
[348487069,1736572231787,-150.0,9.01e-05,2]
[348487070,1736572231797,-150.0,9.035e-05,2]
[348487071,1736572231807,-150.0,9.089e-05,2]
[348487072,1736572231817,-150.0,9.101e-05,2]
[348487073,1736572231826,-150.0,9.173e-05,2]
[348487074,1736572231836,-250.0,9.237e-05,2]
[348487075,1736572231846,-150.0,9.271e-05,2]
[348487076,1736572231855,-150.0,9.279e-05,2]
[348487077,1736572231865,-287.527,9.5e-05,2]
[348487078,1736572231874,-150.0,9.515e-05,2]
[348487079,1736572231884,-150.0,9.607e-05,2]
[348487080,1736572231894,-1000.0,9.686e-05,2]
[348487081,1736572231904,-588.41,9.744e-05,2]
[348487082,1736572231913,-150.0,9.763e-05,2]
[348487083,1736572231922,-150.0,9.796e-05,2]
[348487084,1736572231932,-150.0,9.796e-05,2]
[348487085,1736572231941,-150.0,9.799e-05,2]
[348487086,1736572231951,-150.0,9.898e-05,2]
[348487087,1736572231960,-440.24,9.9e-05,2]
[348487088,1736572231970,-443.79,9.9e-05,2]
[348487089,1736572231979,-777.3,9.9e-05,2]
[348487090,1736572231989,-8975.02,9.9e-05,2]
[348487091,1736572231998,-797.67,9.989e-05,2]
[348487092,1736572232008,-1202.15,9.989e-05,2]
[348487093,1736572232018,-1022.39141639,9.989e-05,2]
[348487097,1736572232059,-381.47858361,9.989e-05,2]
[348487099,1736572232069,-860.29,9.989e-05,2]
[348487101,1736572232078,-544.23,9.989e-05,2]
[348487103,1736572232088,-500.0,9.989e-05,2]
[348487105,1736572232097,-1663.69,9.989e-05,2]
[348487107,1736572232107,-500.0,9.989e-05,2]
[348487109,1736572232116,-500.0,9.989e-05,2]
[348487111,1736572232125,-500.0,9.989e-05,2]
[348487113,1736572232135,-939.79186,9.99e-05,2]
[348487115,1736572232146,-1069.00829095,9.99e-05,2]
[348487117,1736572232158,-836.98947385,9.99e-05,2]
[348487120,1736572232174,-578.18200214,9.99e-05,2]
[348487123,1736572232198,-7388.43888594,9.99e-05,2]
[348487126,1736572232220,-752.76793986,9.99e-05,2]
[348487132,1736572232264,-96350.64222392,9.99e-05,2]
[348487248,1736572237626,-500.0,9.989e-05,2]
[348487249,1736572237637,-2044.61658396,9.99e-05,2]
[348487250,1736572237650,-256.85250795,9.99e-05,2]
[348487251,1736572237676,-6351.82275769,9.99e-05,2]
[348487252,1736572237785,-993.34986515,9.99e-05,2]
[348487253,1736572237841,-39534.31023081,9.99e-05,2]
[348487254,1736572237854,-311.184893,9.99e-05,2]
[348487425,1736572239613,-1095.6062822,9.99e-05,2]
[348487426,1736572239625,-3334.54464559,9.99e-05,2]
[348487427,1736572239667,-3999.64712997,9.99e-05,2]
[348487428,1736572239724,-372.80077324,9.99e-05,2]
[348487429,1736572239834,-83789.44365378,9.99e-05,2]
[348487430,1736572239844,-1972.152,9.992e-05,2]
[348487431,1736572239854,-176.753,9.992e-05,2]
[348487432,1736572239864,-14392.5720325,9.992e-05,2]
[348487433,1736572239874,-5604.3892723,9.992e-05,2]
[348487434,1736572239886,-1752.8015046,9.992e-05,2]
[348487435,1736572239897,-3525.1921199,9.992e-05,2]
[348487436,1736572239907,-500.0,9.995e-05,2]
[348487437,1736572239917,-500.0,9.995e-05,2]
[348487438,1736572239928,-500.0,9.995e-05,2]
[348487439,1736572239938,-1610.83,9.995e-05,2]
[348487440,1736572239948,-500.0,9.995e-05,2]
[348487441,1736572239964,-811.25,9.995e-05,2]
[348487442,1736572239975,-579.89,9.995e-05,2]
[348487443,1736572239986,-792.23,9.995e-05,2]
[348487444,1736572239996,-501.14,9.996e-05,2]
[348487445,1736572240006,-1370.21,9.996e-05,2]
[348487446,1736572240017,-500.0,9.997e-05,2]
[348487447,1736572240027,-416.5138575,9.997e-05,2]
[348487448,1736572240037,-500.0,9.997e-05,2]
[348487449,1736572240048,-500.0,9.997e-05,2]
[348487450,1736572240059,-489.88951282,9.997e-05,2]
[348487451,1736572240069,-500.0,9.997e-05,2]
[348487452,1736572240081,-500.0,9.997e-05,2]
[348487453,1736572240091,-500.0,9.997e-05,2]
[348487454,1736572240101,-500.0,9.997e-05,2]
[348487455,1736572240112,-490.0,9.997e-05,2]
[348487456,1736572240122,-500.0,9.997e-05,2]
[348487457,1736572240132,-500.0,9.997e-05,2]
[348487458,1736572240142,-259.1,9.997e-05,2]
[348487459,1736572240152,-500.0,9.997e-05,2]
[348487460,1736572240163,-500.0,9.997e-05,2]
[348487461,1736572240173,-500.0,9.997e-05,2]
[348487462,1736572240183,-500.0,9.997e-05,2]
[348487463,1736572240198,-500.0,9.997e-05,2]
[348487464,1736572240215,-954.98,9.997e-05,2]
[348487465,1736572240225,-500.0,9.997e-05,2]
[348487466,1736572240235,-1353.99,9.997e-05,2]
[348487467,1736572240245,-500.0,9.997e-05,2]
[348487468,1736572240256,-500.0,9.997e-05,2]
[348487469,1736572240267,-2323.59,9.997e-05,2]
[348487470,1736572240277,-500.0,9.997e-05,2]
[348487471,1736572240287,-500.0,9.997e-05,2]
[348487472,1736572240298,-500.0,9.997e-05,2]
[348487473,1736572240308,-500.0,9.997e-05,2]
[348487474,1736572240318,-500.0,9.997e-05,2]
[348487475,1736572240329,-500.0,9.997e-05,2]
[348487476,1736572240339,-500.0,9.997e-05,2]
[348487477,1736572240348,-500.0,9.997e-05,2]
[348487478,1736572240359,-511.1773408,9.997e-05,2]
[348487479,1736572240369,-500.0,9.997e-05,2]
[348487480,1736572240380,-1149.59,9.997e-05,2]
[348487481,1736572240390,-509.29,9.997e-05,2]
[348487482,1736572240401,-500.0,9.997e-05,2]
[348487483,1736572240412,-500.0,9.997e-05,2]
[348487484,1736572240423,-500.0,9.997e-05,2]
[348487485,1736572240434,-2077.39,9.997e-05,2]
[348487486,1736572240444,-1078.57,9.997e-05,2]
[348487487,1736572240454,-500.0,9.997e-05,2]
[348487488,1736572240464,-685.41,9.997e-05,2]
[348487489,1736572240474,-872.33,9.997e-05,2]
[348487490,1736572240484,-1111.87,9.999e-05,2]
[348487491,1736572240495,-500.0,9.999e-05,2]
[348487492,1736572240510,-500.0,9.999e-05,2]
[348487493,1736572240520,-1016.4,9.999e-05,2]
[348487494,1736572240530,-606.2187505,9.999e-05,2]
[348487495,1736572240540,-500.0,9.999e-05,2]
[348487496,1736572240550,-500.0,9.999e-05,2]
[348487497,1736572240560,-500.0,9.999e-05,2]
[348487498,1736572240571,-500.0,9.999e-05,2]
[348487499,1736572240581,-503.59199804,9.999e-05,2]
[348487500,1736572240591,-509.76234719,9.999e-05,2]
[348487501,1736572240601,-2335.69,9.999e-05,2]
[348487502,1736572240612,-183.50942762,9.999e-05,2]
[348487503,1736572240623,-500.0,9.999e-05,2]
[348487504,1736572240632,-507.06882894,9.999e-05,2]
[348487505,1736572240643,-518.72,9.999e-05,2]
[348487506,1736572240653,-557.38106266,9.999e-05,2]
[348487507,1736572240664,-500.0,9.999e-05,2]
[348487508,1736572240674,-500.0,9.999e-05,2]
[348487509,1736572240690,-500.0,9.999e-05,2]
[348487510,1736572240701,-500.0,9.999e-05,2]
[348487511,1736572240711,-500.0,9.999e-05,2]
[348487512,1736572240722,-607.51839087,9.999e-05,2]